fUST/lending_fUST_20251202
["ID","MTS","AMOUNT","RATE_DAILY","PERIOD"]
[395336158,1764633034573,-2153.0,0.00012235,2]
[395336159,1764633034582,-630.0,0.00012235,2]
[395336160,1764633034591,-990.0,0.00012235,2]
[395336161,1764633034600,-1294.88,0.00012329,2]
[395336162,1764633034608,-1079.07,0.00012329,2]
[395336163,1764633034617,-899.22,0.00012329,2]
[395336164,1764633034626,-749.35,0.00012329,2]
[395336165,1764633034635,-624.46,0.00012329,2]
[395336166,1764633034644,-520.39,0.00012329,2]
[395336167,1764633034652,-433.65,0.00012329,2]
[395336168,1764633034661,-361.38,0.00012329,2]
[395336169,1764633034670,-301.15,0.00012329,2]
[395336170,1764633034680,-250.96,0.00012329,2]
[395336171,1764633034688,-209.13,0.00012329,2]
[395336172,1764633034698,-174.28,0.00012329,2]
[395336173,1764633034711,-871.4,0.00012329,2]
[395336174,1764633034720,-500.0,0.00012329,2]
[395336175,1764633034729,-151.0,0.00012541,2]
[395336176,1764633034738,-151.0,0.00012541,2]
[395336177,1764633034749,-151.0,0.00012541,2]
[395336178,1764633034758,-151.0,0.00012541,2]
[395336179,1764633034767,-151.0,0.00012541,2]
[395336180,1764633034776,-151.0,0.00012541,2]
[395336181,1764633034786,-151.0,0.00012541,2]
[395336182,1764633034795,-151.0,0.00012541,2]
[395336183,1764633034804,-151.0,0.00012541,2]
[395336184,1764633034813,-151.0,0.00012541,2]
[395336185,1764633034822,-239.84119403,0.00012562,2]
[395336186,1764633034831,-500.0,0.00012603,2]
[395336187,1764633034840,-500.0,0.00012603,2]
[395336188,1764633034849,-500.0,0.00012877,2]
[395336189,1764633034858,-250.0,0.00012903,2]
[395336190,1764633034867,-364.0,0.00012997,2]
[395336191,1764633034876,-1874.0,0.00012997,2]
[395336192,1764633034885,-7106.0536228,0.00013,2]
[395336193,1764633034894,-248.71531821,0.0001311,2]
[395336194,1764633034903,-500.0,0.00013151,2]
[395336195,1764633034912,-500.0,0.00013151,2]
[395336196,1764633034921,-282.30933218,0.00013273,2]
[395336197,1764633034930,-500.0,0.00013273,2]
[395336198,1764633034939,-500.0,0.00013273,2]
[395336199,1764633034948,-500.0,0.00013273,2]
[395336200,1764633034957,-500.0,0.00013273,2]
[395336201,1764633034966,-500.0,0.00013273,2]
[395336202,1764633034975,-500.0,0.00013273,2]
[395336203,1764633034984,-500.0,0.00013273,2]
[395336204,1764633034992,-500.0,0.00013273,2]
[395336205,1764633035001,-500.0,0.00013273,2]
[395336206,1764633035010,-500.0,0.00013273,2]
[395336207,1764633035019,-500.0,0.00013273,2]
[395336208,1764633035027,-512.47457159,0.00013273,2]
[395336209,1764633035036,-500.0,0.00013273,2]
[395336210,1764633035045,-500.0,0.00013273,2]
[395336211,1764633035053,-216.24787623,0.00013273,2]
[395336212,1764633035062,-500.0,0.00013273,2]
[395336213,1764633035071,-164.91530215,0.00013273,2]
[395336214,1764633035079,-500.0,0.00013273,2]
[395336215,1764633035088,-500.0,0.00013273,2]
[395336216,1764633035097,-500.0,0.00013273,2]
[395336217,1764633035105,-500.45448968,0.00013273,2]
[395336218,1764633035114,-500.0,0.00013273,2]
[395336219,1764633035123,-506.01992005,0.00013273,2]
[395336220,1764633035132,-500.0,0.00013273,2]
[395336221,1764633035141,-500.0,0.00013273,2]
[395336222,1764633035150,-500.0,0.00013273,2]
[395336223,1764633035158,-345.68770136,0.00013273,2]
[395336224,1764633035167,-500.0,0.00013273,2]
[395336225,1764633035175,-500.0,0.00013273,2]
[395336226,1764633035184,-500.0,0.00013273,2]
[395336227,1764633035193,-500.0,0.00013273,2]
[395336228,1764633035202,-500.0,0.00013273,2]
[395336229,1764633035211,-500.0,0.00013273,2]
[395336230,1764633035220,-500.0,0.00013273,2]
[395336231,1764633035229,-500.0,0.00013273,2]
[395336232,1764633035237,-500.0,0.00013273,2]
[395336233,1764633035246,-500.0,0.00013273,2]
[395336234,1764633035255,-500.0,0.00013273,2]
[395336235,1764633035263,-209.89362425,0.00013273,2]
[395336236,1764633035272,-500.0,0.00013273,2]
[395336237,1764633035281,-478.39080992,0.00013273,2]
[395336238,1764633035290,-500.0,0.00013273,2]
[395336239,1764633035298,-264.06972467,0.00013273,2]
[395336240,1764633035307,-500.0,0.00013273,2]
[395336241,1764633035316,-500.0,0.00013273,2]
[395336242,1764633035324,-500.0,0.00013273,2]
[395336243,1764633035333,-325.2196498,0.00013273,2]
[395336244,1764633035341,-267.72587169,0.00013273,2]
[395336245,1764633035350,-500.0,0.00013273,2]
[395336246,1764633035358,-500.5585097,0.00013273,2]
[395336247,1764633035367,-500.0,0.00013273,2]
[395336248,1764633035376,-500.0,0.00013273,2]
[395336249,1764633035385,-158.31361287,0.00013273,2]
[395336250,1764633035394,-500.0,0.00013273,2]
[395336251,1764633035403,-500.0,0.00013273,2]
[395336252,1764633035412,-151.0,0.00013273,2]
[395336253,1764633035421,-151.0,0.00013273,2]
[395336254,1764633035429,-151.0,0.00013273,2]
[395336255,1764633035438,-151.0,0.00013273,2]
[395336256,1764633035447,-151.0,0.00013273,2]
[395336257,1764633035455,-685.028014,0.00013273,2]
[395336258,1764633035464,-685.028014,0.00013273,2]
[395336259,1764633035473,-685.028014,0.00013273,2]
[395336260,1764633035482,-685.028014,0.00013273,2]
[395336261,1764633035491,-152.731337,0.00013273,2]
[395336262,1764633035500,-500.0,0.00013425,2]
[395336263,1764633035508,-500.0,0.0001344,2]
[395336264,1764633035517,-265.26190631,0.00013575,2]
[395336265,1764633035526,-10000.0,0.00013598,2]
[395336266,1764633035534,-257.91778498,0.00013658,2]
[395336267,1764633035543,-300.0,0.00013673,2]
[395336268,1764633035552,-500.0,0.00013698,2]
[395336269,1764633035561,-500.0,0.00013698,2]
[395336270,1764633035570,-500.0,0.00013698,2]
[395336271,1764633035578,-500.0,0.00013698,2]
[395336272,1764633035587,-500.0,0.00013698,2]
[395336273,1764633035595,-500.0,0.00013698,2]
[395336274,1764633035604,-500.0,0.00013698,2]
[395336275,1764633035613,-500.0,0.00013698,2]
[395336276,1764633035621,-500.0,0.00013698,2]
[395336277,1764633035631,-500.0,0.00013698,2]
[395336278,1764633035640,-500.0,0.00013698,2]
[395336279,1764633035649,-500.0,0.00013698,2]
[395336280,1764633035658,-500.0,0.00013698,2]
[395336281,1764633035667,-500.0,0.00013698,2]
[395336282,1764633035676,-500.0,0.00013698,2]
[395336283,1764633035685,-500.0,0.00013698,2]
[395336284,1764633035694,-500.0,0.00013698,2]
[395336285,1764633035712,-500.0,0.00013698,2]
[395336286,1764633035730,-500.0,0.00013698,2]
[395336287,1764633035739,-500.0,0.00013698,2]
[395336288,1764633035748,-259.19012218,0.00013698,2]
[395336289,1764633035757,-500.0,0.00013698,2]
[395336290,1764633035769,-506.55741248,0.00013698,2]
[395336291,1764633035783,-500.0,0.00013698,2]
[395336292,1764633035791,-500.0,0.00013698,2]
[395336293,1764633035800,-500.0,0.00013698,2]
[395336294,1764633035809,-500.0,0.00013698,2]
[395336295,1764633035818,-500.0,0.00013698,2]
[395336296,1764633035828,-500.0,0.00013698,2]
[395336297,1764633035837,-500.0,0.00013698,2]
[395336298,1764633035972,-500.0,0.00013698,2]
[395336299,1764633035993,-500.0,0.00013698,2]
[395336300,1764633036003,-190.90645723,0.00013698,2]
[395336301,1764633036012,-500.0,0.00013698,2]
[395336302,1764633036021,-500.0,0.00013698,2]
[395336303,1764633036030,-177.85629254,0.00013698,2]
[395336304,1764633036039,-3250.67,0.00013698,2]
[395336305,1764633036049,-3250.67,0.00013698,2]
[395336306,1764633036058,-3250.67,0.00013698,2]
[395336307,1764633036068,-3250.67,0.00013698,2]
[395336308,1764633036077,-3250.67,0.00013698,2]
[395336309,1764633036087,-3250.67,0.00013698,2]
[395336310,1764633036096,-3250.67,0.00013698,2]
[395336311,1764633036105,-3250.67,0.00013698,2]
[395336312,1764633036115,-3250.67,0.00013698,2]
[395336313,1764633036124,-3250.67,0.00013698,2]
[395336314,1764633036133,-3250.67,0.00013698,2]
[395336315,1764633036143,-3250.67,0.00013698,2]
[395336316,1764633036152,-3250.67,0.00013698,2]
[395336317,1764633036161,-3250.67,0.00013698,2]
[395336318,1764633036171,-3250.67,0.00013698,2]
[395336319,1764633036181,-3250.67,0.00013698,2]
[395336320,1764633036190,-3250.67,0.00013698,2]
[395336321,1764633036200,-3250.67,0.00013698,2]
[395336322,1764633036210,-3250.67,0.00013698,2]
[395336323,1764633036219,-3250.67,0.00013698,2]
[395336324,1764633036228,-3250.67,0.00013698,2]
[395336325,1764633036238,-3250.67,0.00013698,2]
[395336326,1764633036246,-3250.67,0.00013698,2]
[395336327,1764633036255,-3250.88011747,0.00013698,2]
[395336328,1764633036263,-500.0,0.00013698,2]
[395336329,1764633036272,-500.0,0.00013698,2]
[395336330,1764633036283,-500.0,0.00013698,2]
[395336331,1764633036292,-500.0,0.00013698,2]
[395336332,1764633036302,-421.15949393,0.00013698,2]
[395336333,1764633036311,-151.0,0.00013698,2]
[395336334,1764633036321,-210.465686,0.00013698,2]
[395336335,1764633036331,-151.0,0.00013698,2]
[395336336,1764633036341,-151.0,0.00013698,2]
[395336337,1764633036352,-151.0,0.00013698,2]
[395336338,1764633036362,-200.779148,0.00013698,2]
[395336339,1764633036372,-151.0,0.00013698,2]
[395336340,1764633036382,-151.0,0.00013698,2]
[395336341,1764633036391,-151.0,0.00013698,2]
[395336342,1764633036401,-151.0,0.00013698,2]
[395336343,1764633036410,-500.0,0.00013698,2]
[395336344,1764633036420,-500.0,0.00013698,2]
[395336345,1764633036431,-500.0,0.00013698,2]
[395336346,1764633036441,-500.0,0.00013698,2]
[395336347,1764633036451,-500.0,0.00013698,2]
[395336348,1764633036460,-500.0,0.00013698,2]
[395336349,1764633036471,-500.0,0.00013698,2]
[395336350,1764633036483,-500.0,0.00013698,2]
[395336351,1764633036492,-500.0,0.00013698,2]
[395336352,1764633036502,-500.0,0.00013698,2]
[395336353,1764633036511,-500.0,0.00013698,2]
[395336354,1764633036522,-500.0,0.00013698,2]
[395336355,1764633036531,-500.0,0.00013698,2]
[395336356,1764633036540,-500.0,0.00013698,2]
[395336357,1764633036550,-500.0,0.00013698,2]
[395336358,1764633036559,-500.0,0.00013698,2]
[395336359,1764633036569,-500.0,0.00013698,2]
[395336360,1764633036579,-500.0,0.00013698,2]
[395336361,1764633036589,-500.0,0.00013698,2]
[395336362,1764633036598,-500.0,0.00013698,2]
[395336363,1764633036608,-355.82314446,0.00013698,2]
[395336364,1764633036618,-500.0,0.00013699,2]
[395336365,1764633036627,-500.0,0.00013699,2]
[395336366,1764633036637,-485.32289832,0.00013699,2]
[395336367,1764633036646,-500.0,0.00013699,2]
[395336368,1764633036656,-500.0,0.00013699,2]
[395336369,1764633036665,-500.0,0.00013699,2]
[395336370,1764633036675,-500.0,0.00013699,2]
[395336371,1764633036685,-500.0,0.00013699,2]
[395336372,1764633036694,-500.0,0.00013699,2]
[395336373,1764633036709,-500.54861135,0.00013699,2]
[395336374,1764633036719,-500.0,0.00013699,2]
[395336375,1764633036729,-500.0,0.00013699,2]
[395336376,1764633036739,-500.0,0.00013699,2]
[395336377,1764633036751,-500.0,0.00013699,2]
[395336378,1764633036762,-634.68235715,0.00013699,2]
[395336379,1764633036772,-500.0,0.00013699,2]
[395336380,1764633036785,-500.0,0.00013699,2]
[395336381,1764633036795,-172.82133106,0.00013699,2]
[395336382,1764633036805,-165.66975087,0.00013699,2]
[395336383,1764633036815,-500.0,0.00013699,2]
[395336384,1764633036827,-500.0,0.00013699,2]
[395336385,1764633036836,-500.0,0.00013699,2]
[395336386,1764633036846,-157.67362382,0.00013699,2]
[395336387,1764633036855,-157.59802733,0.00013699,2]
[395336388,1764633036864,-500.0,0.00013699,2]
[395336389,1764633036874,-519.23522045,0.00013699,2]
[395336390,1764633036883,-500.0,0.00013699,2]
[395336391,1764633036892,-500.0,0.00013699,2]
[395336392,1764633036901,-500.0,0.00013699,2]
[395336393,1764633036912,-500.0,0.00013699,2]
[395336394,1764633036922,-500.0,0.00013699,2]
[395336395,1764633036930,-500.0,0.00013699,2]
[395336396,1764633036939,-500.0489736,0.00013699,2]
[395336397,1764633036949,-500.0,0.00013699,2]
[395336398,1764633036959,-500.0,0.00013699,2]
[395336399,1764633036968,-500.0,0.00013699,2]
[395336400,1764633036977,-254.088245,0.00013699,2]
[395336401,1764633036986,-254.088245,0.00013699,2]
[395336402,1764633036995,-254.088245,0.00013699,2]
[395336403,1764633037003,-254.088245,0.00013699,2]
[395336404,1764633037012,-160.0,0.00013699,2]
[395336405,1764633037021,-1000.0,0.00013821,2]
[395336406,1764633037030,-1000.0,0.00013821,2]
[395336407,1764633037040,-505.73670855,0.00013821,2]
[395336408,1764633037049,-1000.0,0.00013821,2]
[395336409,1764633037058,-1000.0,0.00013821,2]
[395336410,1764633037067,-1139.81242824,0.00013821,2]
[395336411,1764633037076,-398.4623948,0.00013821,2]
[395336412,1764633037086,-1000.0,0.00013821,2]
[395336413,1764633037095,-1006.66898639,0.00013821,2]
[395336414,1764633037104,-670.16412802,0.00013821,2]
[395336415,1764633037114,-522.3933914,0.00013821,2]
[395336416,1764633037123,-505.45098339,0.00013821,2]
[395336417,1764633037132,-442.43214923,0.00013821,2]
[395336418,1764633037141,-1000.0,0.00013821,2]
[395336419,1764633037150,-455.0,0.00013821,2]
[395336420,1764633037158,-1000.0,0.00013821,2]
[395336421,1764633037167,-1000.0,0.00013821,2]
[395336422,1764633037175,-1000.0,0.00013821,2]
[395336423,1764633037184,-666.92599792,0.00013821,2]
[395336424,1764633037193,-1000.0,0.00013821,2]
[395336425,1764633037204,-1000.0,0.00013821,2]
[395336426,1764633037213,-1000.0,0.00013821,2]
[395336427,1764633037222,-1000.0,0.00013821,2]
[395336428,1764633037231,-1000.0,0.00013821,2]
[395336429,1764633037240,-1000.0,0.00013821,2]
[395336430,1764633037249,-1000.0,0.00013821,2]
[395336431,1764633037258,-517.02891649,0.00013821,2]
[395336432,1764633037267,-1000.0,0.00013821,2]
[395336433,1764633037276,-500.0,0.00013821,2]
[395336434,1764633037285,-1000.0,0.00013821,2]
[395336435,1764633037294,-1000.0,0.00013821,2]
[395336436,1764633037306,-1000.0,0.00013821,2]
[395336437,1764633037315,-502.35107951,0.00013821,2]
[395336438,1764633037325,-613.64730994,0.00013821,2]
[395336439,1764633037334,-290.04235874,0.00013821,2]
[395336440,1764633037342,-490.84282783,0.00013821,2]
[395336441,1764633037351,-500.0,0.00014147,2]
[395336442,1764633037360,-267.46074303,0.00014206,2]
[395336443,1764633037369,-600.0,0.00014221,2]
[395336444,1764633037379,-500.0,0.00014247,2]
[395336445,1764633037387,-1000.0,0.00014247,2]
[395336446,1764633037397,-1000.0,0.00014247,2]
[395336447,1764633037406,-1000.0,0.00014247,2]
[395336448,1764633037415,-1000.0,0.00014247,2]
[395336449,1764633037424,-1000.0,0.00014247,2]
[395336450,1764633037432,-1000.0,0.00014247,2]
[395336451,1764633037441,-1000.0,0.00014247,2]
[395336452,1764633037451,-1000.0,0.00014247,2]
[395336453,1764633037460,-1000.0,0.00014247,2]
[395336454,1764633037469,-1000.0,0.00014247,2]
[395336455,1764633037478,-1000.0,0.00014247,2]
[395336456,1764633037487,-1000.0,0.00014247,2]
[395336457,1764633037496,-1000.0,0.00014247,2]
[395336458,1764633037504,-260.0,0.00014247,2]
[395336459,1764633037513,-222.2729613,0.00014368,2]
[395336460,1764633037522,-1627.78225004,0.00014368,2]
[395336461,1764633037531,-1500.0,0.00014368,2]
[395336462,1764633037540,-1200.56488132,0.00014368,2]
[395336463,1764633037549,-1500.0,0.00014368,2]
[395336464,1764633037558,-1500.0,0.00014368,2]
[395336465,1764633037567,-1500.0,0.00014368,2]
[395336466,1764633037577,-151.0,0.00014444,2]
[395336467,1764633037587,-151.0,0.00014444,2]
[395336468,1764633037597,-151.0,0.00014444,2]
[395336469,1764633037606,-151.0,0.00014444,2]
[395336470,1764633037618,-151.0,0.00014444,2]
[395336471,1764633037627,-151.0,0.00014444,2]
[395336472,1764633037636,-151.0,0.00014444,2]
[395336473,1764633037646,-151.0,0.00014444,2]
[395336474,1764633037655,-151.0,0.00014444,2]
[395336475,1764633037663,-100000.0,0.00014444,2]
[395336476,1764633037672,-500.0,0.00014573,2]
[395336477,1764633037681,-277.35679052,0.00014754,2]
[395336478,1764633037690,-900.0,0.00014768,2]
[395336479,1764633037702,-500.0,0.00014795,2]
[395336480,1764633037713,-500.0,0.00014795,2]
[395336483,1764633037723,-500.0,0.00014795,2]
[395336485,1764633037732,-553.41048465,0.00014795,2]
[395336487,1764633037742,-506.05647031,0.00014795,2]
[395336488,1764633037753,-500.0,0.00014795,2]
[395336489,1764633037762,-1500.0,0.00014795,2]
[395336490,1764633037772,-1396.8418006,0.00014795,2]
[395336491,1764633037784,-1500.0,0.00014795,2]
[395336492,1764633037793,-1500.0,0.00014795,2]
[395336493,1764633037802,-1156.07675811,0.00014795,2]
[395336494,1764633037812,-1500.0,0.00014795,2]
[395336496,1764633037821,-1500.0,0.00014795,2]
[395336497,1764633037830,-1500.0,0.00014795,2]
[395336498,1764633037838,-151.0,0.00014795,2]
[395336499,1764633037847,-685.028014,0.00014795,2]
[395336500,1764633037856,-685.028014,0.00014795,2]
[395336502,1764633037866,-685.028014,0.00014795,2]
[395336503,1764633037875,-685.028014,0.00014795,2]
[395336504,1764633037884,-360.0,0.00014795,2]
[395336505,1764633037892,-500.0,0.00014854,2]
[395336506,1764633037902,-2000.0,0.00014916,2]
[395336507,1764633037911,-2000.0,0.00014916,2]
[395336508,1764633037921,-500.0,0.00014916,2]
[395336509,1764633037930,-2000.0,0.00014916,2]
[395336510,1764633037939,-500.0,0.00014984,2]
[395336511,1764633037948,-287.61899177,0.00015302,2]
[395336512,1764633037957,-1200.0,0.00015316,2]
[395336513,1764633037966,-460.0,0.00015342,2]
[395336515,1764633038110,-500.0,0.00015342,2]
[395336516,1764633038120,-2000.0,0.00015342,2]
[395336517,1764633038130,-500.0,0.00015342,2]
[395336519,1764633038139,-2000.0,0.00015342,2]
[395336520,1764633038149,-1000.43748035,0.00015342,2]
[395336522,1764633038158,-2000.0,0.00015342,2]
[395336523,1764633038168,-500.5600776,0.00015342,2]
[395336524,1764633038177,-2500.0,0.00015464,2]
[395336525,1764633038187,-2500.0,0.00015464,2]
[395336526,1764633038196,-2500.0,0.00015464,2]
[395336527,1764633038206,-300.37009979,0.00015575,2]
[395336528,1764633038215,-504.70243251,0.00015597,2]
[395336529,1764633038224,-239.06616433,0.00015708,2]
[395336530,1764633038234,-151.0,0.00015764,2]
[395336531,1764633038243,-151.0,0.00015764,2]
[395336532,1764633038252,-151.0,0.00015764,2]
[395336533,1764633038262,-151.0,0.00015764,2]
[395336534,1764633038271,-151.0,0.00015764,2]
[395336535,1764633038281,-151.0,0.00015764,2]
[395336536,1764633038290,-182.064614,0.00015764,2]
[395336537,1764633038301,-151.0,0.00015764,2]
[395336538,1764633038311,-151.0,0.00015764,2]
[395336539,1764633038321,-151.0,0.00015764,2]
[395336540,1764633038330,-151.0,0.00015764,2]
[395336541,1764633038340,-151.0,0.00015764,2]
[395336542,1764633038349,-151.0,0.00015764,2]
[395336543,1764633038359,-151.0,0.00015781,2]
[395336544,1764633038369,-254.088245,0.0001579,2]
[395336545,1764633038378,-254.088245,0.0001579,2]
[395336546,1764633038388,-254.088245,0.0001579,2]
[395336547,1764633038397,-254.088245,0.0001579,2]
[395336548,1764633038406,-268.012315,0.0001579,2]
[395336549,1764633038415,-685.028014,0.0001579,2]
[395336550,1764633038424,-685.028014,0.0001579,2]
[395336551,1764633038433,-685.028014,0.0001579,2]
[395336552,1764633038442,-685.028014,0.0001579,2]
[395336553,1764633038452,-151.0,0.0001579,2]
[395336554,1764633038461,-151.0,0.0001579,2]
[395336555,1764633038471,-151.0,0.0001579,2]
[395336556,1764633038481,-151.0,0.0001579,2]
[395336557,1764633038490,-151.0,0.0001579,2]
[395336558,1764633038499,-151.0,0.0001579,2]
[395336559,1764633038508,-151.0,0.0001579,2]
[395336560,1764633038518,-151.0,0.0001579,2]
[395336561,1764633038527,-151.0,0.00015808,2]
[395336562,1764633038537,-151.0,0.00015808,2]
[395336563,1764633038546,-151.0,0.00015808,2]
[395336564,1764633038555,-151.0,0.00015808,2]
[395336565,1764633038564,-151.0,0.00015808,2]
[395336566,1764633038573,-151.0,0.00015808,2]
[395336567,1764633038583,-151.0,0.00015808,2]
[395336568,1764633038592,-151.0,0.00015825,2]
[395336569,1764633038602,-151.0,0.00015825,2]
[395336570,1764633038611,-151.0,0.00015825,2]
[395336571,1764633038621,-151.0,0.00015825,2]
[395336572,1764633038630,-160.523436,0.00015825,2]
[395336573,1764633038639,-151.0,0.00015825,2]
[395336574,1764633038648,-151.0,0.00015825,2]
[395336575,1764633038657,-151.0,0.00015825,2]
[395336576,1764633038667,-151.0,0.00015825,2]
[395336577,1764633038676,-255.112839,0.00015825,2]
[395336578,1764633038686,-151.0,0.00015825,2]
[395336579,1764633038695,-298.26089446,0.0001585,2]
[395336580,1764633038708,-1500.0,0.00015864,2]
[395336581,1764633038718,-151.0,0.0001589,2]
[395336582,1764633038727,-151.0,0.0001589,2]
[395336583,1764633038737,-151.0,0.0001589,2]
[395336584,1764633038747,-151.0,0.0001589,2]
[395336585,1764633038757,-151.0,0.0001589,2]
[395336586,1764633038766,-151.0,0.0001589,2]
[395336587,1764633038777,-216.406456,0.0001589,2]
[395336588,1764633038786,-560.0,0.0001589,2]
[395336589,1764633038796,-500.0,0.0001589,2]
[395336590,1764633038806,-2500.0,0.0001589,2]
[395336591,1764633038816,-2500.0,0.0001589,2]
[395336592,1764633038826,-2500.0,0.0001589,2]
[395336593,1764633038836,-3000.0,0.00016012,2]
[395336594,1764633038846,-3000.0,0.00016012,2]
[395336595,1764633038856,-3000.0,0.00016012,2]
[395336596,1764633038865,-150.0,0.00016078,2]
[395336597,1764633038875,-309.29654756,0.00016398,2]
[395336598,1764633038885,-1800.0,0.00016412,2]
[395336599,1764633038894,-685.028014,0.00016438,2]
[395336600,1764633038903,-685.028014,0.00016438,2]
[395336601,1764633038912,-685.028014,0.00016438,2]
[395336602,1764633038922,-685.028014,0.00016438,2]
[395336603,1764633038931,-660.0,0.00016438,2]
[395336604,1764633038941,-500.0,0.00016438,2]
[395336605,1764633038950,-3000.0,0.00016438,2]
[395336606,1764633038960,-3000.0,0.00016438,2]
[395336607,1764633038969,-3000.0,0.00016438,2]
[395336608,1764633038979,-181.58,0.0001644,2]
[395336609,1764633038988,-181.58,0.0001644,2]
[395336610,1764633038997,-181.58,0.0001644,2]
[395336611,1764633039007,-254.088245,0.0001656,2]
[395336612,1764633039016,-254.088245,0.0001656,2]
[395336613,1764633039025,-254.088245,0.0001656,2]
[395336614,1764633039041,-254.088245,0.0001656,2]
[395336615,1764633039060,-1736.33140048,0.0001656,2]
[395336616,1764633039077,-3500.0,0.0001656,2]
[395336617,1764633039097,-3500.0,0.0001656,2]
[395336618,1764633039118,-320.74051982,0.00016946,2]
[395336619,1764633039136,-2100.0,0.0001696,2]
[395336620,1764633039154,-760.0,0.00016986,2]
[395336621,1764633039171,-3500.0,0.00016986,2]
[395336622,1764633039188,-3500.0,0.00016986,2]
[395336623,1764633039207,-3145.56022313,0.00016986,2]
[395336624,1764633039229,-500.0,0.00016986,2]
[395336625,1764633039243,-2253.74252548,0.00017108,2]
[395336626,1764633039262,-4000.0,0.00017108,2]
[395336627,1764633039278,-205.25397506,0.00017136,2]
[395336628,1764633039294,-332.60791905,0.00017494,2]
[395336629,1764633039307,-2400.0,0.00017508,2]
[395336630,1764633039323,-860.0,0.00017534,2]
[395336631,1764633039338,-4000.0,0.00017534,2]
[395336632,1764633039353,-4000.0,0.00017534,2]
[395336633,1764633039368,-500.0,0.00017534,2]
[395336634,1764633039383,-150.0,0.00017539,2]
[395336635,1764633039397,-335.47829327,0.00017575,2]
[395336636,1764633039412,-151.0,0.00017656,2]
[395336637,1764633039428,-151.0,0.00017656,2]
[395336638,1764633039444,-151.0,0.00017656,2]
[395336639,1764633039459,-151.0,0.00017656,2]
[395336640,1764633039474,-151.0,0.00017656,2]
[395336641,1764633039488,-151.0,0.00017656,2]
[395336642,1764633039503,-151.0,0.00017656,2]
[395336643,1764633039517,-151.0,0.00017656,2]
[395336644,1764633039534,-4500.0,0.00017656,2]
[395336645,1764633039549,-430.31909579,0.00017791,2]
[395336646,1764633039563,-685.028014,0.000178,2]
[395336647,1764633039578,-685.028014,0.000178,2]
[395336648,1764633039592,-685.028014,0.000178,2]
[395336649,1764633039607,-685.028018,0.000178,2]
[395336650,1764633039621,-151.0,0.000178,2]
[395336651,1764633039636,-344.91441206,0.00018042,2]
[395336652,1764633039651,-2700.0,0.00018056,2]
[395336653,1764633039666,-960.0,0.00018082,2]
[395336654,1764633039681,-4500.0,0.00018082,2]
[395336655,1764633039696,-4500.0,0.00018082,2]
[395336656,1764633039714,-500.0,0.00018082,2]
[395336657,1764633039729,-600.0,0.00018125,2]
[395336658,1764633039744,-5000.0,0.00018204,2]
[395336659,1764633039761,-600.0,0.00018314,2]
[395336660,1764633039776,-150.42942466,0.00018502,2]
[395336662,1764633039793,-600.0,0.00018502,2]
[395336663,1764633039810,-357.6762453,0.0001859,2]
[395336664,1764633039825,-207.53914597,0.000186,2]
[395336665,1764633039841,-373.57046274,0.000186,2]
[395336666,1764633039856,-163.70145958,0.000186,2]
[395336667,1764633039868,-3000.0,0.00018604,2]